[Event "European Womens-ch 2025"]
[Site "Rhodes"]
[Date "2025.04.09"]
[Round "9.9"]
[White "Daulyte-Cornette, Deimante"]
[Black "Mammadova, Gulnar"]
[Result "1-0"]
[Annotator "ChessBase"]
[ECO "C85"]
[WhiteElo "2389"]
[BlackElo "2342"]
[PlyCount "103"]
[EventDate "2025.03.29"]
[EventType "swiss"]
[EventCountry "GRE"]
[SourceTitle "playchess.com"]
[Source "ChessBase"]
[SourceQuality "1"]
[TimeControl "40/5400+30:1800+30"]

1. e4 {[%emt 0:00:02]} e5 {[%emt 0:00:07]} 2. Nf3 {[%emt 0:00:12]} Nc6 {[%emt 0:00:12]} 3. Bb5 {[%emt 0:00:13]} a6 {[%emt 0:00:09]} 4. Ba4 {[%emt 0:00:06]} Nf6 {[%emt 0:00:13]} 5. O-O {[%emt 0:00:20]} Be7 {[%emt 0:00:14]} 6. Bxc6 {[%emt 0:00:18]} dxc6 {[%emt 0:00:17]} 7. d3 {[%emt 0:00:10]} Nd7 {[%emt 0:02:46]} 8. Nc3 {[%emt 0:00:21]} O-O {[%emt 0:00:27]} 9. Be3 {[%emt 0:00:14]} Bd6 {[%emt 0:02:25]} 10. Ne2 {[%emt 0:01:46]} Re8 {[%emt 0:01:35]} 11. Nd2 {[%emt 0:02:43]} b5 {[%emt 0:03:47]} 12. Ng3 {[%emt 0:05:55]} Nf8 {[%emt 0:03:15]} 13. Nf5 {[%emt 0:04:57]} Ng6 {[%emt 0:05:50]} 14. Qg4 {[%emt 0:05:26]} Be6 {[%emt 0:03:21]} 15. g3 {[%emt 0:16:16]} Qd7 {[%emt 0:04:04]} 16. Qf3 {[%emt 0:01:25]} Bf8 {[%emt 0:02:37]} 17. g4 {[%emt 0:04:05]} f6 {[%emt 0:03:14]} 18. Kh1 {[%emt 0:03:14]} Ne7 {[%emt 0:08:54]} 19. Rg1 {[%emt 0:02:21]} Kh8 {[%emt 0:03:17]} 20. Nb3 {[%emt 0:08:29]} Ng8 {[%emt 0:10:49]} 21. Nc5 {[%emt 0:01:44]} Qf7 {[%emt 0:01:40]} 22. Rg3 {[%emt 0:09:39]} g6 {[%emt 0:04:30]} 23. Rag1 {[%emt 0:03:58]} Bc8 {[%emt 0:06:18]} 24. Nh4 {[%emt 0:05:32]} Be7 {[%emt 0:06:04]} 25. g5 {[%emt 0:03:38]} Rf8 {[%emt 0:04:52]} 26. gxf6 {[%emt 0:01:01]} Qxf6 {[%emt 0:01:02]} 27. Qxf6+ {[%emt 0:01:50]} Nxf6 {[%emt 0:02:43]} 28. Rxg6 {[%emt 0:05:08]} Ng8 {[%emt 0:06:07]} 29. R6g5 {[%emt 0:04:23]} Bxg5 {[%emt 0:01:44]} 30. Rxg5 {[%emt 0:00:06]} Nf6 {[%emt 0:01:48]} 31. f3 {[%emt 0:04:11]} Bh3 {[%emt 0:02:52]} 32. Rxe5 {[%emt 0:02:07]} Rae8 {[%emt 0:03:23]} 33. Rg5 {[%emt 0:00:55]} Rg8 {[%emt 0:00:24]} 34. Rg3 {[%emt 0:00:14]} Rxg3 {[%emt 0:01:21]} 35. hxg3 {[%emt 0:00:05]} Bc8 {[%emt 0:00:12]} 36. Bd4 {[%emt 0:00:59]} Kg7 {[%emt 0:00:09]} 37. Kg2 {[%emt 0:01:25]} Kf7 {[%emt 0:00:17]} 38. f4 {[%emt 0:00:29]} Bg4 {[%emt 0:01:25]} 39. Nf3 {[%emt 0:01:13]} Bxf3+ {[%emt 0:02:54]} 40. Kxf3 {[%emt 0:00:00]} a5 {[%emt 0:00:00]} 41. g4 {[%emt 0:02:06]} h6 {[%emt 0:01:51]} 42. e5 {[%emt 0:10:00]} Nd5 {[%emt 0:03:19]} 43. f5 {[%emt 0:01:40]} b4 {[%emt 0:03:45]} 44. e6+ {[%emt 0:01:51]} Ke7 {[%emt 0:00:37]} 45. Bg7 {[%emt 0:01:03]} a4 {[%emt 0:04:55]} 46. Bxh6 {[%emt 0:09:46]} a3 {[%emt 0:01:05]} 47. Bg5+ {[%emt 0:03:39]} Kd6 {[%emt 0:01:27]} 48. Ne4+ {[%emt 0:00:05]} Ke5 {[%emt 0:00:09]} 49. bxa3 {[%emt 0:00:23]} bxa3 {[%emt 0:00:49]} 50. c4 {[%emt 0:00:20]} Kd4 {[%emt 0:01:46]} 51. cxd5 {[%emt 0:00:21]} cxd5 {[%emt 0:00:04]} 52. Nf6 {[%emt 0:00:29]} 1-0

[Event "European Womens-ch 2025"]
[Site "Rhodes"]
[Date "2025.04.09"]
[Round "9.10"]
[White "Radeva, Viktoria"]
[Black "Narva, Mai"]
[Result "0-1"]
[Annotator "ChessBase"]
[ECO "B91"]
[WhiteElo "2297"]
[BlackElo "2380"]
[PlyCount "130"]
[EventDate "2025.03.29"]
[EventType "swiss"]
[EventCountry "GRE"]
[SourceTitle "playchess.com"]
[Source "ChessBase"]
[SourceQuality "1"]
[TimeControl "40/5400+30:1800+30"]

1. e4 {[%emt 0:00:02]} c5 {[%emt 0:02:13]} 2. Nf3 {[%emt 0:00:12]} d6 {[%emt 0:00:13]} 3. d4 {[%emt 0:00:19]} cxd4 {[%emt 0:00:07]} 4. Nxd4 {[%emt 0:00:05]} Nf6 {[%emt 0:00:10]} 5. Nc3 {[%emt 0:00:12]} a6 {[%emt 0:00:15]} 6. g3 {[%emt 0:11:50]} g6 {[%emt 0:13:44]} 7. Bg2 {[%emt 0:00:16]} Bg7 {[%emt 0:00:33]} 8. O-O {[%emt 0:01:04]} O-O {[%emt 0:00:35]} 9. a4 {[%emt 0:03:03]} Qc7 {[%emt 0:03:24]} 10. h3 {[%emt 0:03:42]} Nc6 {[%emt 0:01:35]} 11. Nxc6 {[%emt 0:08:19]} bxc6 {[%emt 0:00:08]} 12. Be3 {[%emt 0:00:32]} Rb8 {[%emt 0:04:23]} 13. Rb1 {[%emt 0:03:28]} a5 {[%emt 0:08:03]} 14. Qd2 {[%emt 0:06:01]} Ba6 {[%emt 0:02:07]} 15. Rfe1 {[%emt 0:01:23]} Rfd8 {[%emt 0:00:59]} 16. f4 {[%emt 0:07:44]} Rb4 {[%emt 0:06:06]} 17. Bf2 {[%emt 0:06:25]} e5 {[%emt 0:11:34]} 18. fxe5 {[%emt 0:10:32]} dxe5 {[%emt 0:00:07]} 19. Qc1 {[%emt 0:01:10]} Nd7 {[%emt 0:05:25]} 20. Rd1 {[%emt 0:03:54]} Rd4 {[%emt 0:04:46]} 21. Bf1 {[%emt 0:05:19]} Bxf1 {[%emt 0:02:50]} 22. Rxf1 {[%emt 0:05:09]} Nc5 {[%emt 0:06:20]} 23. Bxd4 {[%emt 0:02:26]} exd4 {[%emt 0:00:09]} 24. Ne2 {[%emt 0:00:03]} Be5 {[%emt 0:01:30]} 25. Nf4 {[%emt 0:04:02]} Nxe4 {[%emt 0:07:33]} 26. Qe1 {[%emt 0:00:35]} f5 {[%emt 0:00:49]} 27. Ne6 {[%emt 0:02:06]} Qb6 {[%emt 0:01:12]} 28. Nxd8 {[%emt 0:01:27]} Bxg3 {[%emt 0:01:48]} 29. Qd1 {[%emt 0:01:16]} Qxd8 {[%emt 0:00:27]} 30. Qf3 {[%emt 0:06:39]} Qg5 {[%emt 0:01:28]} 31. Kh1 {[%emt 0:01:06]} Qh4 {[%emt 0:02:29]} 32. Kg2 {[%emt 0:00:22]} Qg5 {[%emt 0:02:09]} 33. Kh1 {[%emt 0:00:11]} Bd6 {[%emt 0:04:50]} 34. Rg1 {[%emt 0:03:07]} Qh4 {[%emt 0:00:47]} 35. Rbf1 {[%emt 0:01:37]} Kh8 {[%emt 0:00:47]} 36. b3 {[%emt 0:02:00]} Qh6 {[%emt 0:03:23]} 37. Rg2 {[%emt 0:00:22]} Qh4 {[%emt 0:01:11]} 38. Rfg1 {[%emt 0:00:31]} Bf4 {[%emt 0:01:15]} 39. Rd1 {[%emt 0:00:55]} c5 {[%emt 0:01:16]} 40. Rdg1 {[%emt 0:00:00]} Kg7 {[%emt 0:00:00]} 41. Re2 {[%emt 0:02:25]} Bg3 {[%emt 0:14:24]} 42. Kg2 {[%emt 0:01:36]} Bd6 {[%emt 0:01:04]} 43. Kf1 {[%emt 0:02:01]} Ng5 {[%emt 0:05:27]} 44. Rxg5 {[%emt 0:08:00]} Qxg5 {[%emt 0:00:05]} 45. Qb7+ {[%emt 0:00:21]} Kh6 {[%emt 0:00:47]} 46. Qf3 {[%emt 0:00:23]} Qc1+ {[%emt 0:04:51]} 47. Kg2 {[%emt 0:00:46]} Bf4 {[%emt 0:03:58]} 48. Qf1 {[%emt 0:07:21]} Qxf1+ {[%emt 0:00:13]} 49. Kxf1 {[%emt 0:00:03]} Be3 {[%emt 0:00:13]} 50. c3 {[%emt 0:00:34]} f4 {[%emt 0:00:56]} 51. cxd4 {[%emt 0:00:29]} cxd4 {[%emt 0:00:23]} 52. Kg2 {[%emt 0:02:50]} d3 {[%emt 0:01:20]} 53. Re1 {[%emt 0:02:22]} Kg5 {[%emt 0:00:39]} 54. b4 {[%emt 0:01:13]} axb4 {[%emt 0:00:19]} 55. a5 {[%emt 0:00:04]} d2 {[%emt 0:00:36]} 56. Rd1 {[%emt 0:00:29]} b3 {[%emt 0:00:28]} 57. a6 {[%emt 0:01:14]} b2 {[%emt 0:00:13]} 58. Kf3 {[%emt 0:02:31]} Kf5 {[%emt 0:00:10]} 59. Rb1 {[%emt 0:02:14]} g5 {[%emt 0:00:31]} 60. Ke2 {[%emt 0:02:53]} Ke4 {[%emt 0:00:26]} 61. a7 {[%emt 0:00:17]} f3+ {[%emt 0:00:36]} 62. Kd1 {[%emt 0:00:09]} Bxa7 {[%emt 0:00:05]} 63. Kxd2 {[%emt 0:00:40]} Be3+ {[%emt 0:00:23]} 64. Ke1 {[%emt 0:00:20]} Bc1 {[%emt 0:00:06]} 65. Kf2 {[%emt 0:00:10]} h5 {[%emt 0:00:12]} 0-1

[Event "European Womens-ch 2025"]
[Site "Rhodes"]
[Date "2025.04.09"]
[Round "9.11"]
[White "Kulon, Klaudia"]
[Black "Avramidou, Anastasia"]
[Result "1-0"]
[Annotator "ChessBase"]
[ECO "D00"]
[WhiteElo "2401"]
[BlackElo "2275"]
[PlyCount "133"]
[EventDate "2025.03.29"]
[EventType "swiss"]
[EventCountry "GRE"]
[SourceTitle "playchess.com"]
[Source "ChessBase"]
[SourceQuality "1"]
[TimeControl "40/5400+30:1800+30"]

1. d4 {[%emt 0:00:08]} Nf6 {[%emt 0:00:17]} 2. Bg5 {[%emt 0:00:04]} d5 {[%emt 0:01:21]} 3. Bxf6 {[%emt 0:00:06]} gxf6 {[%emt 0:00:48]} 4. e3 {[%emt 0:00:20]} e6 {[%emt 0:09:33]} 5. Nf3 {[%emt 0:01:36]} c5 {[%emt 0:00:22]} 6. dxc5 {[%emt 0:00:37]} Bxc5 {[%emt 0:01:02]} 7. Be2 {[%emt 0:00:09]} Nc6 {[%emt 0:04:25]} 8. O-O {[%emt 0:00:44]} e5 {[%emt 0:11:46]} 9. c4 {[%emt 0:03:55]} d4 {[%emt 0:10:16]} 10. exd4 {[%emt 0:00:34]} Nxd4 {[%emt 0:10:31]} 11. Nc3 {[%emt 0:00:05]} Be6 {[%emt 0:06:16]} 12. Nxd4 {[%emt 0:12:38]} Bxd4 {[%emt 0:01:32]} 13. Nb5 {[%emt 0:00:06]} O-O {[%emt 0:16:28]} 14. Qb3 {[%emt 0:01:50]} Bc5 {[%emt 0:01:28]} 15. Qf3 {[%emt 0:08:17]} Qe7 {[%emt 0:06:11]} 16. Bd3 {[%emt 0:00:31]} Rfd8 {[%emt 0:06:06]} 17. Rad1 {[%emt 0:02:21]} Kg7 {[%emt 0:03:40]} 18. b3 {[%emt 0:05:53]} Rd7 {[%emt 0:02:34]} 19. Kh1 {[%emt 0:05:32]} a6 {[%emt 0:02:59]} 20. Nc3 {[%emt 0:00:14]} Rad8 {[%emt 0:00:07]} 21. Qe4 {[%emt 0:04:20]} f5 {[%emt 0:00:17]} 22. Qxe5+ {[%emt 0:00:08]} Qf6 {[%emt 0:00:03]} 23. Qg3+ {[%emt 0:01:02]} Kh8 {[%emt 0:01:25]} 24. Ne2 {[%emt 0:01:33]} Bd6 {[%emt 0:01:17]} 25. Qf3 {[%emt 0:00:59]} Be5 {[%emt 0:00:06]} 26. Ng1 {[%emt 0:06:32]} Rd4 {[%emt 0:00:45]} 27. Bc2 {[%emt 0:01:21]} b5 {[%emt 0:00:55]} 28. Rxd4 {[%emt 0:02:04]} Rxd4 {[%emt 0:00:01]} 29. Qe2 {[%emt 0:00:48]} bxc4 {[%emt 0:01:39]} 30. Nf3 {[%emt 0:00:06]} Rd5 {[%emt 0:00:20]} 31. bxc4 {[%emt 0:02:41]} Rc5 {[%emt 0:00:01]} 32. Bb3 {[%emt 0:02:43]} Bf4 {[%emt 0:01:14]} 33. Rd1 {[%emt 0:02:06]} a5 {[%emt 0:00:10]} 34. g3 {[%emt 0:02:52]} Bh6 {[%emt 0:00:56]} 35. Nd4 {[%emt 0:01:44]} Rc8 {[%emt 0:00:35]} 36. Nxe6 {[%emt 0:01:02]} fxe6 {[%emt 0:00:01]} 37. Rd6 {[%emt 0:00:40]} f4 {[%emt 0:00:58]} 38. Qxe6 {[%emt 0:00:59]} Qxe6 {[%emt 0:00:04]} 39. Rxe6 {[%emt 0:00:03]} Kg7 {[%emt 0:00:04]} 40. Kg2 {[%emt 0:00:00]} fxg3 {[%emt 0:00:00]} 41. hxg3 {[%emt 0:01:35]} Bd2 {[%emt 0:01:48]} 42. Re7+ {[%emt 0:01:21]} Kg6 {[%emt 0:05:52]} 43. Rd7 {[%emt 0:05:08]} Bb4 {[%emt 0:00:34]} 44. Bc2+ {[%emt 0:03:24]} Kf6 {[%emt 0:00:07]} 45. Rxh7 {[%emt 0:00:23]} Rxc4 {[%emt 0:00:08]} 46. Rf7+ {[%emt 0:01:58]} Ke5 {[%emt 0:04:07]} 47. f4+ {[%emt 0:05:20]} Kd6 {[%emt 0:02:05]} 48. Bb3 {[%emt 0:00:06]} Rd4 {[%emt 0:02:09]} 49. Rf6+ {[%emt 0:05:15]} Kd7 {[%emt 0:01:41]} 50. Rf5 {[%emt 0:02:06]} Kd6 {[%emt 0:01:07]} 51. Re5 {[%emt 0:00:49]} a4 {[%emt 0:05:21]} 52. Bg8 {[%emt 0:01:13]} Rd2+ {[%emt 0:07:09]} 53. Kf3 {[%emt 0:01:14]} Bc5 {[%emt 0:00:01]} 54. Re2 {[%emt 0:00:50]} Rd3+ {[%emt 0:00:06]} 55. Kg4 {[%emt 0:00:04]} Be3 {[%emt 0:00:55]} 56. Kf5 {[%emt 0:02:22]} Bc1 {[%emt 0:02:48]} 57. g4 {[%emt 0:00:30]} Rf3 {[%emt 0:00:10]} 58. Re4 {[%emt 0:00:10]} a3 {[%emt 0:00:06]} 59. g5 {[%emt 0:00:48]} Rf1 {[%emt 0:01:11]} 60. Bb3 {[%emt 0:02:40]} Rf2 {[%emt 0:00:59]} 61. Rd4+ {[%emt 0:00:52]} Ke7 {[%emt 0:00:22]} 62. Rc4 {[%emt 0:00:16]} Bb2 {[%emt 0:01:15]} 63. Kg6 {[%emt 0:00:47]} Rf3 {[%emt 0:00:34]} 64. Ra4 {[%emt 0:00:47]} Rg3 {[%emt 0:00:47]} 65. f5 {[%emt 0:00:37]} Bc1 {[%emt 0:01:12]} 66. f6+ {[%emt 0:00:04]} Kd7 {[%emt 0:00:03]} 67. Rd4+ {[%emt 0:00:14]} 1-0

[Event "European Womens-ch 2025"]
[Site "Rhodes"]
[Date "2025.04.09"]
[Round "9.12"]
[White "Beydullayeva, Govhar"]
[Black "Krasteva, Beloslava"]
[Result "1/2-1/2"]
[Annotator "ChessBase"]
[ECO "E67"]
[WhiteElo "2400"]
[BlackElo "2257"]
[PlyCount "113"]
[EventDate "2025.03.29"]
[EventType "swiss"]
[EventCountry "GRE"]
[SourceTitle "playchess.com"]
[Source "ChessBase"]
[SourceQuality "1"]
[TimeControl "40/5400+30:1800+30"]

1. d4 {[%emt 0:00:29]} d6 {[%emt 0:00:10]} 2. Nf3 {[%emt 0:00:06]} Nf6 {[%emt 0:00:12]} 3. c4 {[%emt 0:00:12]} g6 {[%emt 0:00:19]} 4. Nc3 {[%emt 0:00:07]} Bg7 {[%emt 0:00:16]} 5. g3 {[%emt 0:00:07]} O-O {[%emt 0:00:21]} 6. Bg2 {[%emt 0:00:03]} Nbd7 {[%emt 0:00:13]} 7. O-O {[%emt 0:00:12]} e5 {[%emt 0:00:10]} 8. e4 {[%emt 0:00:21]} Re8 {[%emt 0:00:26]} 9. h3 {[%emt 0:00:04]} b6 {[%emt 0:00:19]} 10. d5 {[%emt 0:09:38]} Nc5 {[%emt 0:00:43]} 11. Re1 {[%emt 0:00:50]} a5 {[%emt 0:00:40]} 12. b3 {[%emt 0:00:33]} h6 {[%emt 0:03:15]} 13. Rb1 {[%emt 0:16:33]} Nh7 {[%emt 0:01:30]} 14. Qc2 {[%emt 0:17:54]} f5 {[%emt 0:08:16]} 15. Nh4 {[%emt 0:00:59]} Qf6 {[%emt 0:03:37]} 16. Nb5 {[%emt 0:03:40]} Qf7 {[%emt 0:07:10]} 17. f4 {[%emt 0:14:41]} exf4 {[%emt 0:04:25]} 18. Bxf4 {[%emt 0:03:57]} Nxe4 {[%emt 0:27:58]} 19. g4 {[%emt 0:02:21]} Nhf6 {[%emt 0:03:10]} 20. Bh2 {[%emt 0:00:34]} h5 {[%emt 0:13:46]} 21. gxf5 {[%emt 0:03:34]} Bxf5 {[%emt 0:02:35]} 22. Nxf5 {[%emt 0:03:21]} gxf5 {[%emt 0:00:01]} 23. Rf1 {[%emt 0:00:22]} Qd7 {[%emt 0:03:28]} 24. Qd3 {[%emt 0:03:20]} Rf8 {[%emt 0:04:34]} 25. Nd4 {[%emt 0:01:26]} Nc5 {[%emt 0:02:39]} 26. Qd1 {[%emt 0:11:17]} Nfe4 {[%emt 0:01:30]} 27. Rc1 {[%emt 0:02:54]} h4 {[%emt 0:01:13]} 28. Bf4 {[%emt 0:00:55]} Rae8 {[%emt 0:03:43]} 29. Rc2 {[%emt 0:00:53]} Ng3 {[%emt 0:01:20]} 30. Bxg3 {[%emt 0:01:38]} hxg3 {[%emt 0:00:05]} 31. Ne6 {[%emt 0:00:37]} Nxe6 {[%emt 0:03:46]} 32. dxe6 {[%emt 0:00:03]} Rxe6 {[%emt 0:03:35]} 33. Bd5 {[%emt 0:00:04]} c6 {[%emt 0:00:37]} 34. Bxe6+ {[%emt 0:00:15]} Qxe6 {[%emt 0:00:01]} 35. Qf3 {[%emt 0:01:32]} f4 {[%emt 0:00:51]} 36. Kg2 {[%emt 0:00:42]} c5 {[%emt 0:00:59]} 37. Re2 {[%emt 0:00:53]} Qf5 {[%emt 0:00:32]} 38. Qe4 {[%emt 0:01:38]} Qxe4+ {[%emt 0:00:32]} 39. Rxe4 {[%emt 0:00:01]} Be5 {[%emt 0:00:16]} 40. Kf3 {[%emt 0:00:00]} Kg7 {[%emt 0:00:00]} 41. Rd1 {[%emt 0:11:32]} a4 {[%emt 0:06:27]} 42. bxa4 {[%emt 0:02:55]} Ra8 {[%emt 0:03:30]} 43. Rxf4 {[%emt 0:00:15]} Bxf4 {[%emt 0:05:10]} 44. Kxf4 {[%emt 0:00:04]} g2 {[%emt 0:00:55]} 45. Kf3 {[%emt 0:00:17]} Rxa4 {[%emt 0:12:47]} 46. Kxg2 {[%emt 0:00:05]} Rxc4 {[%emt 0:01:53]} 47. Rxd6 {[%emt 0:00:03]} b5 {[%emt 0:00:26]} 48. Kf3 {[%emt 0:07:11]} b4 {[%emt 0:00:42]} 49. Ke3 {[%emt 0:03:14]} Rc2 {[%emt 0:00:46]} 50. Rc6 {[%emt 0:02:58]} c4 {[%emt 0:01:15]} 51. Kd4 {[%emt 0:00:56]} c3 {[%emt 0:00:35]} 52. a3 {[%emt 0:02:07]} Rd2+ {[%emt 0:01:31]} 53. Ke3 {[%emt 0:00:06]} bxa3 {[%emt 0:00:51]} 54. Rxc3 {[%emt 0:00:04]} Rh2 {[%emt 0:00:09]} 55. Kd4 {[%emt 0:01:40]} a2 {[%emt 0:00:16]} 56. Ra3 {[%emt 0:00:10]} Rxh3 {[%emt 0:00:45]} 57. Ke4 {[%emt 0:06:37]} 1/2-1/2

[Event "European Womens-ch 2025"]
[Site "Rhodes"]
[Date "2025.04.09"]
[Round "9.13"]
[White "Vega Gutierrez, Sabrina"]
[Black "Sieber, Fiona"]
[Result "1/2-1/2"]
[Annotator "ChessBase"]
[ECO "B45"]
[WhiteElo "2380"]
[BlackElo "2276"]
[PlyCount "93"]
[EventDate "2025.03.29"]
[EventType "swiss"]
[EventCountry "GRE"]
[SourceTitle "playchess.com"]
[Source "ChessBase"]
[SourceQuality "1"]
[TimeControl "40/5400+30:1800+30"]

1. e4 {[%emt 0:00:05]} c5 {[%emt 0:00:05]} 2. Nf3 {[%emt 0:00:07]} Nc6 {[%emt 0:00:05]} 3. d4 {[%emt 0:00:08]} cxd4 {[%emt 0:00:05]} 4. Nxd4 {[%emt 0:00:06]} Nf6 {[%emt 0:00:05]} 5. Nc3 {[%emt 0:00:09]} e6 {[%emt 0:00:05]} 6. a3 {[%emt 0:00:18]} d6 {[%emt 0:01:17]} 7. Be3 {[%emt 0:00:38]} Be7 {[%emt 0:00:09]} 8. h3 {[%emt 0:02:08]} O-O {[%emt 0:03:09]} 9. g4 {[%emt 0:00:46]} d5 {[%emt 0:02:33]} 10. Bg2 {[%emt 0:00:37]} Bd7 {[%emt 0:14:04]} 11. exd5 {[%emt 0:02:20]} Nxd5 {[%emt 0:00:35]} 12. Nxd5 {[%emt 0:02:54]} exd5 {[%emt 0:00:03]} 13. O-O {[%emt 0:13:29]} Nxd4 {[%emt 0:10:32]} 14. Bxd4 {[%emt 0:14:36]} Bd6 {[%emt 0:03:43]} 15. Bc3 {[%emt 0:18:33]} Qg5 {[%emt 0:08:27]} 16. Qd4 {[%emt 0:02:07]} Rac8 {[%emt 0:12:34]} 17. Rad1 {[%emt 0:07:53]} Bb5 {[%emt 0:01:35]} 18. Rfe1 {[%emt 0:04:32]} Rfd8 {[%emt 0:00:06]} 19. f4 {[%emt 0:11:35]} Bxf4 {[%emt 0:04:28]} 20. Qxa7 {[%emt 0:03:09]} d4 {[%emt 0:07:43]} 21. Bxd4 {[%emt 0:01:13]} Rxc2 {[%emt 0:00:08]} 22. Qxb7 {[%emt 0:04:27]} h5 {[%emt 0:12:07]} 23. Qe4 {[%emt 0:00:39]} Ba4 {[%emt 0:01:52]} 24. Bf6 {[%emt 0:09:17]} Be3+ {[%emt 0:01:10]} 25. Kh1 {[%emt 0:00:11]} Qxf6 {[%emt 0:01:14]} 26. Rxd8+ {[%emt 0:00:19]} Qxd8 {[%emt 0:00:04]} 27. Qxa4 {[%emt 0:01:08]} Rxg2 {[%emt 0:08:48]} 28. Rxe3 {[%emt 0:00:04]} Qd5 {[%emt 0:00:21]} 29. Qb3 {[%emt 0:00:44]} Qd2 {[%emt 0:01:24]} 30. Re8+ {[%emt 0:00:42]} Kh7 {[%emt 0:00:06]} 31. Qb8 {[%emt 0:00:25]} hxg4 {[%emt 0:04:55]} 32. Qe5 {[%emt 0:00:18]} gxh3 {[%emt 0:00:56]} 33. Qh5+ {[%emt 0:00:47]} Qh6 {[%emt 0:00:03]} 34. Qf5+ {[%emt 0:00:14]} g6 {[%emt 0:01:33]} 35. Qc8 {[%emt 0:00:50]} Rh2+ {[%emt 0:01:19]} 36. Kxh2 {[%emt 0:00:14]} Qf4+ {[%emt 0:00:07]} 37. Kxh3 {[%emt 0:00:45]} Qf3+ {[%emt 0:00:06]} 38. Kh2 {[%emt 0:00:05]} Qf2+ {[%emt 0:00:04]} 39. Kh1 {[%emt 0:00:29]} Qf1+ {[%emt 0:00:02]} 40. Kh2 {[%emt 0:00:00]} Qf2+ {[%emt 0:00:00]} 41. Kh3 {[%emt 0:00:53]} Qf3+ {[%emt 0:00:12]} 42. Kh4 {[%emt 0:02:52]} Qf4+ {[%emt 0:00:42]} 43. Qg4 {[%emt 0:03:19]} Qh2+ {[%emt 0:00:06]} 44. Qh3 {[%emt 0:02:56]} Qf4+ {[%emt 0:00:04]} 45. Qg4 {[%emt 0:00:04]} Qh2+ {[%emt 0:00:03]} 46. Qh3 {[%emt 0:01:37]} Qf4+ {[%emt 0:00:04]} 47. Qg4 {[%emt 0:23:18]} 1/2-1/2

[Event "European Womens-ch 2025"]
[Site "Rhodes"]
[Date "2025.04.09"]
[Round "9.14"]
[White "Urh, Zala"]
[Black "Roebers, Eline"]
[Result "1-0"]
[Annotator "ChessBase"]
[ECO "E11"]
[WhiteElo "2244"]
[BlackElo "2367"]
[PlyCount "79"]
[EventDate "2025.03.29"]
[EventType "swiss"]
[EventCountry "GRE"]
[SourceTitle "playchess.com"]
[Source "ChessBase"]
[SourceQuality "1"]
[TimeControl "40/5400+30:1800+30"]

1. d4 {[%emt 0:01:20]} d5 {[%emt 0:00:09]} 2. c4 {[%emt 0:00:41]} e6 {[%emt 0:00:06]} 3. Nf3 {[%emt 0:00:12]} Nf6 {[%emt 0:00:04]} 4. g3 {[%emt 0:00:08]} Bb4+ {[%emt 0:00:03]} 5. Bd2 {[%emt 0:00:12]} a5 {[%emt 0:00:06]} 6. Bg2 {[%emt 0:00:58]} O-O {[%emt 0:00:18]} 7. a3 {[%emt 0:06:13]} Be7 {[%emt 0:00:54]} 8. Qc2 {[%emt 0:00:53]} Nbd7 {[%emt 0:01:52]} 9. O-O {[%emt 0:03:17]} c6 {[%emt 0:01:54]} 10. Bf4 {[%emt 0:02:50]} h6 {[%emt 0:01:49]} 11. Rd1 {[%emt 0:03:14]} Ne4 {[%emt 0:05:44]} 12. Nc3 {[%emt 0:02:26]} g5 {[%emt 0:13:06]} 13. Bc1 {[%emt 0:11:44]} f5 {[%emt 0:01:12]} 14. Ne1 {[%emt 0:03:04]} Nd6 {[%emt 0:13:19]} 15. b3 {[%emt 0:02:46]} Nf6 {[%emt 0:03:32]} 16. f3 {[%emt 0:06:27]} dxc4 {[%emt 0:02:11]} 17. e4 {[%emt 0:20:04]} cxb3 {[%emt 0:02:40]} 18. Qxb3 {[%emt 0:00:07]} a4 {[%emt 0:03:36]} 19. Qa2 {[%emt 0:02:26]} Nf7 {[%emt 0:01:14]} 20. Be3 {[%emt 0:05:46]} fxe4 {[%emt 0:03:01]} 21. Nxe4 {[%emt 0:01:50]} Nd5 {[%emt 0:01:36]} 22. Bf2 {[%emt 0:00:53]} Nd6 {[%emt 0:01:30]} 23. Qc2 {[%emt 0:01:32]} Kg7 {[%emt 0:00:30]} 24. Nd3 {[%emt 0:02:19]} Nxe4 {[%emt 0:08:33]} 25. fxe4 {[%emt 0:00:06]} Nc7 {[%emt 0:00:50]} 26. Nc5 {[%emt 0:06:21]} Nb5 {[%emt 0:02:33]} 27. Bh3 {[%emt 0:06:10]} Qd6 {[%emt 0:17:19]} 28. Qc4 {[%emt 0:07:01]} Nc7 {[%emt 0:08:02]} 29. Rab1 {[%emt 0:03:02]} b5 {[%emt 0:02:06]} 30. Qc2 {[%emt 0:00:05]} Qd8 {[%emt 0:01:03]} 31. Bg4 {[%emt 0:00:55]} Qe8 {[%emt 0:00:59]} 32. Qe2 {[%emt 0:00:27]} Qf7 {[%emt 0:03:35]} 33. Bh5 {[%emt 0:00:20]} Qxf2+ {[%emt 0:00:05]} 34. Qxf2 {[%emt 0:00:06]} Rxf2 {[%emt 0:00:03]} 35. Kxf2 {[%emt 0:00:09]} e5 {[%emt 0:00:02]} 36. Ke3 {[%emt 0:01:47]} exd4+ {[%emt 0:01:00]} 37. Kxd4 {[%emt 0:00:03]} Bh3 {[%emt 0:00:14]} 38. g4 {[%emt 0:00:53]} Rf8 {[%emt 0:01:40]} 39. Nd7 {[%emt 0:00:36]} Rf3 {[%emt 0:00:34]} 40. Rbc1 {[%emt 0:00:00]} 1-0